[Event "FIDE WCCC Girls-10 2024"]
[Site "Montesilvano"]
[Date "2024.11.25"]
[Round "10.6"]
[White "Yunker, Alisa Genrietta"]
[Black "Mukhorina, Mariya Dm"]
[Result "1-0"]
[ECO "B22"]
[WhiteElo "1872"]
[BlackElo "1567"]
[Annotator "NA RC"]
[PlyCount "121"]
[EventDate "2024.11.18"]
[EventType "swiss"]
[EventCountry "ITA"]
[SourceTitle "playchess.com"]
[Source "ChessBase"]
[SourceQuality "1"]
[TimeControl "5400+30"]

1. e4 {[%emt 0:00:02]} c5 {[%emt 0:00:26]} 2. Nf3 {[%emt 1:31:28]} Nc6 {[%emt 0:00:22]} 3. c3 {[%emt 0:00:00]} d5 {[%emt 0:00:23]} 4. exd5 {[%emt 0:00:00]} Qxd5 {[%emt 0:00:01]} 5. d4 {[%emt 0:00:00]} e6 {[%emt 0:03:43]} 6. Be2 {[%emt 0:00:00]} Nf6 {[%emt 0:00:40]} 7. O-O {[%emt 0:00:00]} Be7 {[%emt 0:02:41]} 8. Be3 {[%emt 0:00:00]} cxd4 {[%emt 0:00:44]} 9. cxd4 {[%emt 0:00:00]} O-O {[%emt 0:01:29]} 10. Nc3 {[%emt 0:00:00]} Qd8 {[%emt 0:01:16]} 11. Ne5 {[%emt 0:00:00]} Nb4 {[%emt 0:09:51]} 12. Bf3 {[%emt 0:00:00]} Nbd5 {[%emt 0:03:52]} 13. Bg5 {[%emt 0:00:00]} Nb6 {[%emt 0:20:42]} 14. Qd3 {[%emt 0:00:00]} h6 {[%emt 0:08:27]} 15. Bh4 {[%emt 0:00:00]} Nfd5 {[%emt 0:02:26]} 16. Bxe7 {[%emt 0:00:00]} Qxe7 {[%emt 0:02:08]} 17. Nxd5 {[%emt 0:00:00]} exd5 {[%emt 0:02:21]} 18. Rfe1 {[%emt 0:00:00]} Qg5 {[%emt 0:06:38]} 19. Qe3 {[%emt 0:00:00]} Qxe3 {[%emt 0:02:29]} 20. Rxe3 {[%emt 0:00:00]} Bf5 {[%emt 0:01:21]} 21. Rc3 {[%emt 0:00:00]} Rfc8 {[%emt 0:03:55]} 22. Rac1 {[%emt 0:00:00]} Rxc3 {[%emt 0:02:25]} 23. Rxc3 {[%emt 0:00:00]} Rc8 {[%emt 0:01:12]} 24. Rxc8+ {[%emt 0:00:00]} Bxc8 {[%emt 0:00:06]} 25. Kf1 {[%emt 0:00:00]} Kf8 {[%emt 0:03:27]} 26. Ke2 {[%emt 0:00:00]} Ke7 {[%emt 0:01:21]} 27. Bg4 {[%emt 0:00:00]} Bxg4+ {[%emt 0:01:55]} 28. Nxg4 {[%emt 0:00:00]} Ke6 {[%emt 0:01:08]} 29. Kd3 {[%emt 0:00:00]} Nc4 {[%emt 0:01:34]} 30. b3 {[%emt 0:00:00]} Nd6 {[%emt 0:00:22]} 31. f3 {[%emt 0:00:00]} Nf5 {[%emt 0:01:35]} 32. g3 {[%emt 0:00:00]} Ne7 {[%emt 0:00:49]} 33. Ne3 {[%emt 0:00:00]} Nc6 {[%emt 0:00:59]} 34. a3 {[%emt 0:00:00]} b6 {[%emt 0:03:31]} 35. b4 {[%emt 0:00:00]} a6 {[%emt 0:01:40]} 36. Kc3 {[%emt 0:00:00]} Na7 {[%emt 0:02:54]} 37. Nc2 {[%emt 0:00:00]} Nb5+ {[%emt 0:00:24]} 38. Kd3 {[%emt 0:00:00]} Nd6 {[%emt 0:00:11]} 39. a4 {[%emt 0:00:00]} Nc4 {[%emt 0:00:23]} 40. a5 {[%emt 0:00:00]} b5 {[%emt 0:02:20]} 41. Na1 {[%emt 0:00:00]} Nd6 {[%emt 0:02:11]} 42. Nb3 {[%emt 0:00:00]} Nb7 {[%emt 0:00:05]} 43. Nc5+ {[%emt 0:00:00]} Nxc5+ {[%emt 0:00:02]} 44. dxc5 {[%emt 0:00:00]} h5 {[%emt 0:02:42]} 45. f4 {[%emt 0:00:00]} f6 {[%emt 0:01:10]} 46. Kd4 {[%emt 0:00:00]} g6 {[%emt 0:00:41]} 47. h3 {[%emt 0:00:00]} g5 {[%emt 0:01:47]} 48. f5+ {[%emt 0:00:00]} Kxf5 {[%emt 0:00:53]} 49. Kxd5 {[%emt 0:00:00]} h4 {[%emt 0:00:08]} 50. gxh4 {[%emt 0:00:00]} gxh4 {[%emt 0:00:11]} 51. c6 {[%emt 0:00:00]} Kf4 {[%emt 0:00:05]} 52. c7 {[%emt 0:00:00]} Kg3 {[%emt 0:00:20]} 53. c8=Q {[%emt 0:00:00]} Kf4 {[%emt 0:00:03]} 54. Qg4+ {[%emt 0:00:00]} Ke3 {[%emt 0:00:06]} 55. Qe4+ {[%emt 0:00:19]} Kf2 {[%emt 0:00:04]} 56. Kd4 {[%emt 0:00:07]} Kg3 {[%emt 0:00:06]} 57. Ke3 {[%emt 0:00:11]} Kxh3 {[%emt 0:00:17]} 58. Qf3+ {[%emt 0:00:07]} Kh2 {[%emt 0:00:06]} 59. Kf2 {[%emt 0:00:06]} h3 {[%emt 0:00:06]} 60. Qg3+ {[%emt 0:00:06]} Kh1 {[%emt 0:00:03]} 61. Qxh3# {[%emt 0:01:05]} 1-0

[Event "FIDE WCCC Girls-10 2024"]
[Site "Montesilvano"]
[Date "2024.11.25"]
[Round "10.7"]
[White "Nandinjiguur, Chinzorig"]
[Black "Sun, Yucan(Sd)"]
[Result "1-0"]
[ECO "D70"]
[WhiteElo "1807"]
[BlackElo "1725"]
[Annotator "NA RC"]
[PlyCount "145"]
[EventDate "2024.11.18"]
[EventType "swiss"]
[EventCountry "ITA"]
[SourceTitle "playchess.com"]
[Source "ChessBase"]
[SourceQuality "1"]
[TimeControl "5400+30"]

1. d4 {[%emt 0:02:32]} Nf6 {[%emt 0:00:37]} 2. c4 {[%emt 0:00:24]} c6 {[%emt 0:00:06]} 3. Nf3 {[%emt 0:00:45]} d5 {[%emt 0:00:13]} 4. e3 {[%emt 0:00:24]} g6 {[%emt 0:00:30]} 5. b3 {[%emt 0:00:26]} Bg7 {[%emt 0:03:26]} 6. Bd3 {[%emt 0:01:11]} O-O {[%emt 0:02:09]} 7. O-O {[%emt 0:00:47]} c5 {[%emt 0:05:12]} 8. Bb2 {[%emt 0:03:23]} cxd4 {[%emt 0:00:55]} 9. Bxd4 {[%emt 0:02:06]} Nc6 {[%emt 0:01:30]} 10. Bc3 {[%emt 0:05:07]} Bg4 {[%emt 0:09:03]} 11. h3 {[%emt 0:02:21]} Bxf3 {[%emt 0:02:53]} 12. Qxf3 {[%emt 0:01:46]} e5 {[%emt 0:04:20]} 13. cxd5 {[%emt 0:04:43]} Nxd5 {[%emt 0:10:57]} 14. Rd1 {[%emt 0:03:42]} Nxc3 {[%emt 0:11:11]} 15. Nxc3 {[%emt 0:00:13]} e4 {[%emt 0:02:32]} 16. Bxe4 {[%emt 0:08:42]} Qa5 {[%emt 0:01:04]} 17. b4 {[%emt 0:08:18]} Nxb4 {[%emt 0:07:09]} 18. Rac1 {[%emt 0:14:47]} Bxc3 {[%emt 0:07:09]} 19. Rxc3 {[%emt 0:01:11]} Nxa2 {[%emt 0:00:23]} 20. Rc2 {[%emt 0:10:55]} Nb4 {[%emt 0:08:11]} 21. Rcd2 {[%emt 0:06:20]} Nc6 {[%emt 0:06:40]} 22. Bxc6 {[%emt 0:03:42]} bxc6 {[%emt 0:00:05]} 23. Qxc6 {[%emt 0:00:09]} Qe5 {[%emt 0:02:46]} 24. Qa6 {[%emt 0:05:18]} Qc5 {[%emt 0:02:09]} 25. Rd5 {[%emt 0:03:22]} Qc7 {[%emt 0:01:49]} 26. Rd7 {[%emt 0:00:25]} Qb6 {[%emt 0:00:47]} 27. Qxb6 {[%emt 0:04:18]} axb6 {[%emt 0:00:01]} 28. Rb1 {[%emt 0:00:15]} Rfb8 {[%emt 0:00:08]} 29. Rd5 {[%emt 0:00:19]} Kf8 {[%emt 0:01:13]} 30. f4 {[%emt 0:01:29]} Ke7 {[%emt 0:00:36]} 31. Kf2 {[%emt 0:01:00]} Ke6 {[%emt 0:01:02]} 32. e4 {[%emt 0:02:16]} Ra4 {[%emt 0:02:42]} 33. Re5+ {[%emt 0:01:58]} Kf6 {[%emt 0:03:10]} 34. Ke3 {[%emt 0:00:37]} Ra2 {[%emt 0:00:47]} 35. g3 {[%emt 0:00:45]} Ra3+ {[%emt 0:00:21]} 36. Kf2 {[%emt 0:00:24]} Ra2+ {[%emt 0:00:11]} 37. Kg1 {[%emt 0:01:13]} Ra3 {[%emt 0:00:12]} 38. Kg2 {[%emt 0:00:12]} Ra2+ {[%emt 0:00:04]} 39. Kf3 {[%emt 0:00:15]} Ra3+ {[%emt 0:00:05]} 40. Kg4 {[%emt 0:01:03]} h5+ {[%emt 0:00:41]} 41. Kh4 {[%emt 0:00:06]} Kg7 {[%emt 0:00:26]} 42. Reb5 {[%emt 0:00:47]} Rc8 {[%emt 0:01:16]} 43. R5b3 {[%emt 0:00:41]} Ra5 {[%emt 0:01:40]} 44. Rxb6 {[%emt 0:00:28]} f6 {[%emt 0:00:14]} 45. R6b5 {[%emt 0:00:31]} Rc5 {[%emt 0:00:47]} 46. Rxa5 {[%emt 0:00:17]} Rxa5 {[%emt 0:00:18]} 47. g4 {[%emt 0:00:19]} g5+ {[%emt 0:01:51]} 48. fxg5 {[%emt 0:00:14]} Rxg5 {[%emt 0:00:07]} 49. Rf1 {[%emt 0:01:22]} hxg4 {[%emt 0:00:43]} 50. hxg4 {[%emt 0:00:14]} Re5 {[%emt 0:00:14]} 51. Rf4 {[%emt 0:00:15]} Kg6 {[%emt 0:00:07]} 52. Kg3 {[%emt 0:00:11]} Kg7 {[%emt 0:00:34]} 53. Kf3 {[%emt 0:00:08]} Kg6 {[%emt 0:00:04]} 54. Rf5 {[%emt 0:00:15]} Re6 {[%emt 0:00:40]} 55. Kf4 {[%emt 0:00:53]} Kg7 {[%emt 0:00:09]} 56. Rc5 {[%emt 0:00:33]} Re7 {[%emt 0:00:48]} 57. Kf5 {[%emt 0:01:08]} Rf7 {[%emt 0:00:16]} 58. Rc6 {[%emt 0:00:18]} Rf8 {[%emt 0:00:12]} 59. Rc7+ {[%emt 0:00:26]} Kh6 {[%emt 0:00:20]} 60. Rd7 {[%emt 0:00:54]} Rg8 {[%emt 0:01:01]} 61. Kxf6 {[%emt 0:00:50]} Rxg4 {[%emt 0:00:15]} 62. e5 {[%emt 0:00:06]} Rf4+ {[%emt 0:00:11]} 63. Ke7 {[%emt 0:00:29]} Kg6 {[%emt 0:00:13]} 64. Rd6+ {[%emt 0:00:30]} Kg7 {[%emt 0:00:25]} 65. e6 {[%emt 0:00:04]} Re4 {[%emt 0:00:43]} 66. Kd7 {[%emt 0:01:02]} Kf6 {[%emt 0:01:17]} 67. Rd3 {[%emt 0:00:28]} Ra4 {[%emt 0:02:14]} 68. Rf3+ {[%emt 0:00:23]} Ke5 {[%emt 0:00:21]} 69. e7 {[%emt 0:00:41]} Ra7+ {[%emt 0:00:09]} 70. Ke8 {[%emt 0:00:11]} Kd6 {[%emt 0:01:07]} 71. Rd3+ {[%emt 0:00:12]} Ke6 {[%emt 0:00:19]} 72. Re3+ {[%emt 0:00:06]} Kf6 {[%emt 0:00:20]} 73. Kf8 {[%emt 0:02:55]} 1-0

[Event "FIDE WCCC Girls-10 2024"]
[Site "Montesilvano"]
[Date "2024.11.25"]
[Round "10.8"]
[White "Pooja Shree R"]
[Black "Pham, Nhu Y"]
[Result "1-0"]
[ECO "B12"]
[WhiteElo "1615"]
[BlackElo "1914"]
[Annotator "NA RC"]
[PlyCount "69"]
[EventDate "2024.11.18"]
[EventType "swiss"]
[EventCountry "ITA"]
[SourceTitle "playchess.com"]
[Source "ChessBase"]
[SourceQuality "1"]
[TimeControl "5400+30"]

1. e4 {[%emt 0:00:20]} c6 {[%emt 0:00:09]} 2. d4 {[%emt 0:00:07]} d5 {[%emt 0:00:05]} 3. e5 {[%emt 0:00:04]} c5 {[%emt 0:00:16]} 4. c3 {[%emt 0:00:05]} Nc6 {[%emt 0:00:16]} 5. Be2 {[%emt 0:01:57]} e6 {[%emt 0:03:02]} 6. Nf3 {[%emt 0:00:31]} Nge7 {[%emt 0:02:18]} 7. O-O {[%emt 0:01:23]} Nf5 {[%emt 0:00:43]} 8. Be3 {[%emt 0:00:24]} c4 {[%emt 0:02:22]} 9. b3 {[%emt 0:03:44]} b5 {[%emt 0:06:07]} 10. a4 {[%emt 0:00:39]} Qa5 {[%emt 0:09:53]} 11. Qc2 {[%emt 0:16:02]} Rb8 {[%emt 0:16:52]} 12. Nbd2 {[%emt 0:04:56]} b4 {[%emt 0:05:45]} 13. bxc4 {[%emt 0:01:20]} bxc3 {[%emt 0:00:45]} 14. Nb3 {[%emt 0:00:38]} Qb4 {[%emt 0:08:46]} 15. Rfb1 {[%emt 0:03:07]} Be7 {[%emt 0:07:52]} 16. cxd5 {[%emt 0:07:21]} Nxe3 {[%emt 0:06:25]} 17. fxe3 {[%emt 0:00:38]} exd5 {[%emt 0:00:50]} 18. Nc5 {[%emt 0:01:51]} Qa5 {[%emt 0:04:09]} 19. Bb5 {[%emt 0:07:53]} Bd7 {[%emt 0:06:16]} 20. e6 {[%emt 0:04:23]} fxe6 {[%emt 0:12:14]} 21. Nxd7 {[%emt 0:00:48]} Rxb5 {[%emt 0:02:01]} 22. axb5 {[%emt 0:01:12]} Nb4 {[%emt 0:01:00]} 23. Qxc3 {[%emt 0:00:26]} Qxb5 {[%emt 0:01:58]} 24. Rxa7 {[%emt 0:01:59]} Qc4 {[%emt 0:00:51]} 25. Ra8+ {[%emt 0:00:31]} Bd8 {[%emt 0:00:44]} 26. Qxb4 {[%emt 0:00:28]} Qxb4 {[%emt 0:00:50]} 27. Rxb4 {[%emt 0:00:13]} Kxd7 {[%emt 0:00:09]} 28. Rb7+ {[%emt 0:00:48]} Kc6 {[%emt 0:00:16]} 29. Rbb8 {[%emt 0:00:10]} h5 {[%emt 0:00:29]} 30. Ne5+ {[%emt 0:00:39]} Kc7 {[%emt 0:00:19]} 31. Rc8+ {[%emt 0:00:35]} Kb7 {[%emt 0:00:13]} 32. Rab8+ {[%emt 0:00:05]} Ka6 {[%emt 0:00:11]} 33. Rc1 {[%emt 0:00:31]} Rh6 {[%emt 0:01:04]} 34. Ra1+ {[%emt 0:00:18]} Ba5 {[%emt 0:00:11]} 35. Nc6 {[%emt 0:00:05]} 1-0

[Event "FIDE WCCC Girls-10 2024"]
[Site "Montesilvano"]
[Date "2024.11.25"]
[Round "10.9"]
[White "Rekhviashvili, Mariam"]
[Black "Bhavanya Panchumarthi"]
[Result "1-0"]
[ECO "B15"]
[WhiteElo "1610"]
[BlackElo "1703"]
[Annotator "NA RC"]
[PlyCount "119"]
[EventDate "2024.11.18"]
[EventType "swiss"]
[EventCountry "ITA"]
[SourceTitle "playchess.com"]
[Source "ChessBase"]
[SourceQuality "1"]
[TimeControl "5400+30"]

1. e4 {[%emt 0:00:02]} c6 {[%emt 0:00:09]} 2. d4 {[%emt 0:00:07]} d5 {[%emt 0:00:23]} 3. Nc3 {[%emt 0:00:04]} dxe4 {[%emt 0:00:15]} 4. Nxe4 {[%emt 0:00:06]} Nf6 {[%emt 0:00:13]} 5. Nxf6+ {[%emt 0:00:07]} exf6 {[%emt 0:00:19]} 6. c3 {[%emt 0:00:02]} Bd6 {[%emt 0:00:16]} 7. Bd3 {[%emt 0:00:07]} O-O {[%emt 0:00:22]} 8. Qc2 {[%emt 0:00:06]} Re8+ {[%emt 0:00:27]} 9. Ne2 {[%emt 0:00:08]} h5 {[%emt 0:00:08]} 10. O-O {[%emt 0:00:06]} h4 {[%emt 0:00:13]} 11. h3 {[%emt 0:00:04]} Nd7 {[%emt 0:00:14]} 12. Bd2 {[%emt 0:00:17]} Nf8 {[%emt 0:00:41]} 13. Rae1 {[%emt 0:00:18]} Bc7 {[%emt 0:00:56]} 14. Qc1 {[%emt 0:11:19]} Be6 {[%emt 0:10:54]} 15. c4 {[%emt 0:12:31]} Qd7 {[%emt 0:04:39]} 16. Bf4 {[%emt 0:02:12]} Ng6 {[%emt 0:05:15]} 17. Bxg6 {[%emt 0:03:18]} fxg6 {[%emt 0:00:42]} 18. d5 {[%emt 0:13:24]} Bf5 {[%emt 0:15:25]} 19. Bxc7 {[%emt 0:03:29]} Qxc7 {[%emt 0:02:37]} 20. dxc6 {[%emt 0:03:25]} Bd3 {[%emt 0:10:49]} 21. cxb7 {[%emt 0:08:59]} Qxb7 {[%emt 0:02:17]} 22. Nd4 {[%emt 0:01:54]} Bxf1 {[%emt 0:04:04]} 23. Rxf1 {[%emt 0:00:18]} Rad8 {[%emt 0:03:13]} 24. Nb5 {[%emt 0:00:31]} a6 {[%emt 0:00:44]} 25. Nc3 {[%emt 0:00:07]} Qc6 {[%emt 0:01:04]} 26. b3 {[%emt 0:00:27]} Rd3 {[%emt 0:03:50]} 27. Nd5 {[%emt 0:00:29]} Rd4 {[%emt 0:03:09]} 28. Qa3 {[%emt 0:01:38]} Rde4 {[%emt 0:01:47]} 29. Qa5 {[%emt 0:01:34]} R4e5 {[%emt 0:05:30]} 30. Qb4 {[%emt 0:06:05]} Kh7 {[%emt 0:03:34]} 31. Qd2 {[%emt 0:03:10]} Qc8 {[%emt 0:07:03]} 32. Kh1 {[%emt 0:03:26]} Qf5 {[%emt 0:02:23]} 33. Nc3 {[%emt 0:13:01]} g5 {[%emt 0:03:23]} 34. Qd1 {[%emt 0:02:48]} Kh6 {[%emt 0:01:19]} 35. Nd5 {[%emt 0:01:09]} Rd8 {[%emt 0:04:32]} 36. Ne3 {[%emt 0:08:31]} Qc8 {[%emt 0:01:55]} 37. Ng4+ {[%emt 0:00:27]} Kh7 {[%emt 0:01:03]} 38. Qb1+ {[%emt 0:00:47]} Qf5 {[%emt 0:02:07]} 39. Nxe5 {[%emt 0:00:16]} Qxb1 {[%emt 0:00:07]} 40. Rxb1 {[%emt 0:00:07]} fxe5 {[%emt 0:00:04]} 41. Kg1 {[%emt 0:00:21]} Rd2 {[%emt 0:00:35]} 42. a4 {[%emt 0:00:11]} Kg6 {[%emt 0:00:44]} 43. Kf1 {[%emt 0:00:21]} Kf5 {[%emt 0:00:34]} 44. Rc1 {[%emt 0:00:16]} Rd3 {[%emt 0:01:11]} 45. Rb1 {[%emt 0:00:29]} Rc3 {[%emt 0:00:19]} 46. Ke2 {[%emt 0:00:10]} Ke4 {[%emt 0:00:37]} 47. Kd2 {[%emt 0:00:53]} Rd3+ {[%emt 0:00:59]} 48. Kc2 {[%emt 0:00:09]} Rd6 {[%emt 0:00:20]} 49. Re1+ {[%emt 0:00:13]} Kf4 {[%emt 0:00:17]} 50. Rd1 {[%emt 0:00:22]} Rc6 {[%emt 0:01:49]} 51. Rd7 {[%emt 0:00:18]} g6 {[%emt 0:00:00]} 52. Kc3 {[%emt 0:00:33]} Rf6 {[%emt 0:00:00]} 53. b4 {[%emt 0:00:56]} g4 {[%emt 0:00:00]} 54. hxg4 {[%emt 0:00:46]} Kxg4 {[%emt 0:00:00]} 55. Rd2 {[%emt 0:00:06]} h3 {[%emt 0:00:59]} 56. gxh3+ {[%emt 0:00:14]} Kxh3 {[%emt 0:00:07]} 57. b5 {[%emt 0:00:10]} g5 {[%emt 0:01:36]} 58. c5 {[%emt 0:00:34]} g4 {[%emt 0:00:23]} 59. c6 {[%emt 0:00:30]} axb5 {[%emt 0:00:26]} 60. axb5 {[%emt 0:00:04]} 1-0

[Event "FIDE WCCC Girls-10 2024"]
[Site "Montesilvano"]
[Date "2024.11.25"]
[Round "10.10"]
[White "Kuvandikova, Nafisa"]
[Black "Bakhshi, Rana"]
[Result "0-1"]
[ECO "B77"]
[WhiteElo "1512"]
[BlackElo "1727"]
[Annotator "NA RC"]
[PlyCount "86"]
[EventDate "2024.11.18"]
[EventType "swiss"]
[EventCountry "ITA"]
[SourceTitle "playchess.com"]
[Source "ChessBase"]
[SourceQuality "1"]
[TimeControl "5400+30"]

1. e4 {[%emt 0:00:16]} c5 {[%emt 0:01:14]} 2. Nf3 {[%emt 0:00:08]} d6 {[%emt 0:01:56]} 3. d4 {[%emt 0:00:13]} cxd4 {[%emt 0:01:13]} 4. Nxd4 {[%emt 0:01:43]} Nf6 {[%emt 0:01:30]} 5. Nc3 {[%emt 0:00:21]} g6 {[%emt 0:01:46]} 6. Be3 {[%emt 0:00:11]} Bg7 {[%emt 0:01:25]} 7. f3 {[%emt 0:00:56]} Nc6 {[%emt 0:01:29]} 8. Qd2 {[%emt 0:01:21]} O-O {[%emt 0:01:49]} 9. Bc4 {[%emt 0:01:15]} Nxd4 {[%emt 0:02:08]} 10. Bxd4 {[%emt 0:00:22]} Be6 {[%emt 0:01:38]} 11. Bxe6 {[%emt 0:03:28]} fxe6 {[%emt 0:01:48]} 12. O-O-O {[%emt 0:01:20]} Qa5 {[%emt 0:02:24]} 13. g4 {[%emt 0:01:22]} b5 {[%emt 0:01:34]} 14. Kb1 {[%emt 0:01:03]} b4 {[%emt 0:04:29]} 15. Ne2 {[%emt 0:00:29]} Qb5 {[%emt 0:02:40]} 16. h4 {[%emt 0:02:42]} a5 {[%emt 0:01:46]} 17. Be3 {[%emt 0:00:28]} a4 {[%emt 0:01:44]} 18. c3 {[%emt 0:05:19]} a3 {[%emt 0:01:34]} 19. cxb4 {[%emt 0:01:09]} axb2 {[%emt 1:05:53]} 20. Nd4 {[%emt 0:02:38]} Qa4 {[%emt 0:00:00]} 21. Qxb2 {[%emt 0:00:25]} Rfb8 {[%emt 0:00:00]} 22. Bd2 {[%emt 0:05:01]} Nd7 {[%emt 0:00:00]} 23. Bc3 {[%emt 0:02:44]} Nb6 {[%emt 0:00:00]} 24. Qb3 {[%emt 0:03:07]} d5 {[%emt 0:00:00]} 25. Rd2 {[%emt 0:13:28]} Nc4 {[%emt 0:00:00]} 26. Rdd1 {[%emt 0:01:59]} Na3+ {[%emt 0:00:00]} 27. Kb2 {[%emt 0:01:39]} Nc4+ {[%emt 0:00:00]} 28. Kb1 {[%emt 0:01:12]} Ra6 {[%emt 0:00:00]} 29. Qxa4 {[%emt 0:05:36]} Rxa4 {[%emt 0:00:00]} 30. Rh2 {[%emt 0:01:42]} dxe4 {[%emt 0:00:00]} 31. fxe4 {[%emt 0:02:08]} Rd8 {[%emt 0:00:00]} 32. g5 {[%emt 0:03:42]} e5 {[%emt 0:00:00]} 33. Rd3 {[%emt 0:03:32]} exd4 {[%emt 0:00:00]} 34. Be1 {[%emt 0:00:39]} Ne5 {[%emt 0:00:00]} 35. Rd1 {[%emt 0:00:19]} Nf3 {[%emt 0:00:00]} 36. Rb2 {[%emt 0:01:26]} d3 {[%emt 0:00:00]} 37. Rb3 {[%emt 0:00:10]} Nxe1 {[%emt 0:00:00]} 38. Rxe1 {[%emt 0:00:08]} d2 {[%emt 0:00:00]} 39. Rd1 {[%emt 0:00:39]} Ra6 {[%emt 0:00:00]} 40. b5 {[%emt 0:00:36]} Ra4 {[%emt 0:00:00]} 41. b6 {[%emt 0:00:38]} Rxe4 {[%emt 0:00:00]} 42. Kc2 {[%emt 0:00:44]} Rc4+ {[%emt 0:00:00]} 43. Kb1 {[%emt 0:00:16]} Rdc8 {[%emt 0:00:00]} 0-1

[Event "FIDE WCCC Girls-10 2024"]
[Site "Montesilvano"]
[Date "2024.11.25"]
[Round "10.11"]
[White "Cetin, Beren"]
[Black "Shtepa, Liubov"]
[Result "1-0"]
[ECO "C44"]
[WhiteElo "1658"]
[BlackElo "1615"]
[Annotator "NA RC"]
[PlyCount "39"]
[EventDate "2024.11.18"]
[EventType "swiss"]
[EventCountry "ITA"]
[SourceTitle "playchess.com"]
[Source "ChessBase"]
[SourceQuality "1"]
[TimeControl "5400+30"]

1. e4 {[%emt 0:00:02]} e5 {[%emt 0:00:03]} 2. Nf3 {[%emt 0:00:06]} Nc6 {[%emt 0:00:02]} 3. d4 {[%emt 0:00:07]} exd4 {[%emt 0:00:03]} 4. Bc4 {[%emt 0:00:06]} Bb4+ {[%emt 0:00:04]} 5. c3 {[%emt 0:00:05]} dxc3 {[%emt 0:00:05]} 6. O-O {[%emt 0:00:05]} Nge7 {[%emt 0:01:04]} 7. a3 {[%emt 0:00:29]} Ba5 {[%emt 0:00:11]} 8. b4 {[%emt 0:00:46]} Bb6 {[%emt 0:00:06]} 9. b5 {[%emt 0:02:00]} Na5 {[%emt 0:00:49]} 10. Ba2 {[%emt 0:06:16]} O-O {[%emt 0:01:00]} 11. Bg5 {[%emt 0:00:52]} d6 {[%emt 0:02:26]} 12. e5 {[%emt 0:01:37]} h6 {[%emt 0:01:44]} 13. Bh4 {[%emt 0:04:18]} Bc5 {[%emt 0:03:48]} 14. Nxc3 {[%emt 0:05:23]} Bg4 {[%emt 0:01:30]} 15. Ne4 {[%emt 0:01:11]} Bxf3 {[%emt 0:06:23]} 16. Qxf3 {[%emt 0:00:10]} Bd4 {[%emt 0:00:59]} 17. Nf6+ {[%emt 0:02:30]} gxf6 {[%emt 0:15:01]} 18. Bxf6 {[%emt 0:00:50]} Qd7 {[%emt 0:00:13]} 19. Qg3+ {[%emt 0:00:08]} Ng6 {[%emt 0:00:08]} 20. Qxg6# {[%emt 0:00:05]} 1-0

[Event "FIDE WCCC Girls-10 2024"]
[Site "Montesilvano"]
[Date "2024.11.25"]
[Round "10.12"]
[White "Jaksa, Ema"]
[Black "Yi, Ruiyu"]
[Result "1-0"]
[ECO "B23"]
[WhiteElo "1635"]
[BlackElo "1571"]
[Annotator "NA RC"]
[PlyCount "93"]
[EventDate "2024.11.18"]
[EventType "swiss"]
[EventCountry "ITA"]
[SourceTitle "playchess.com"]
[Source "ChessBase"]
[SourceQuality "1"]
[TimeControl "5400+30"]

1. e4 {[%emt 0:00:13]} c5 {[%emt 0:00:07]} 2. Nc3 {[%emt 0:00:17]} d6 {[%emt 0:00:16]} 3. g3 {[%emt 0:00:35]} Nc6 {[%emt 0:00:30]} 4. Bg2 {[%emt 0:00:37]} Nf6 {[%emt 0:00:15]} 5. d3 {[%emt 0:00:45]} e6 {[%emt 0:00:20]} 6. Nge2 {[%emt 0:02:19]} Be7 {[%emt 0:00:28]} 7. O-O {[%emt 0:02:51]} a6 {[%emt 0:00:45]} 8. d4 {[%emt 0:06:05]} cxd4 {[%emt 0:00:36]} 9. Nxd4 {[%emt 0:00:06]} O-O {[%emt 0:00:18]} 10. Be3 {[%emt 0:05:02]} Bd7 {[%emt 0:03:10]} 11. f4 {[%emt 0:11:20]} Rc8 {[%emt 0:03:45]} 12. Kh1 {[%emt 0:09:03]} b5 {[%emt 0:03:55]} 13. a3 {[%emt 0:12:45]} Qc7 {[%emt 0:02:28]} 14. Qe2 {[%emt 0:10:57]} Nxd4 {[%emt 0:01:46]} 15. Bxd4 {[%emt 0:00:07]} e5 {[%emt 0:00:16]} 16. Be3 {[%emt 0:05:40]} exf4 {[%emt 0:01:41]} 17. Bxf4 {[%emt 0:00:59]} Bc6 {[%emt 0:00:47]} 18. Rad1 {[%emt 0:02:27]} Rfe8 {[%emt 0:02:44]} 19. Rd2 {[%emt 0:02:16]} Qb7 {[%emt 0:03:18]} 20. Rfd1 {[%emt 0:03:03]} h6 {[%emt 0:06:08]} 21. h3 {[%emt 0:09:43]} Bf8 {[%emt 0:02:24]} 22. Bxd6 {[%emt 0:03:00]} Bxd6 {[%emt 0:00:09]} 23. Rxd6 {[%emt 0:00:06]} Nxe4 {[%emt 0:01:04]} 24. Nxe4 {[%emt 0:01:19]} Bxe4 {[%emt 0:00:06]} 25. Bxe4 {[%emt 0:01:08]} Rxe4 {[%emt 0:00:53]} 26. Qg2 {[%emt 0:01:10]} Qe7 {[%emt 0:04:00]} 27. Qd2 {[%emt 0:05:03]} Qe5 {[%emt 0:03:09]} 28. Rd8+ {[%emt 0:01:52]} Rxd8 {[%emt 0:00:44]} 29. Qxd8+ {[%emt 0:00:02]} Kh7 {[%emt 0:00:02]} 30. Qd3 {[%emt 0:00:42]} f5 {[%emt 0:01:38]} 31. g4 {[%emt 0:02:08]} Re1+ {[%emt 0:05:16]} 32. Rxe1 {[%emt 0:00:07]} Qxe1+ {[%emt 0:00:04]} 33. Kg2 {[%emt 0:00:10]} Qe4+ {[%emt 0:10:27]} 34. Qxe4 {[%emt 0:03:33]} fxe4 {[%emt 0:00:04]} 35. Kf2 {[%emt 0:00:00]} Kg6 {[%emt 0:00:51]} 36. Ke3 {[%emt 0:00:00]} Kg5 {[%emt 0:00:15]} 37. Kxe4 {[%emt 0:00:00]} Kh4 {[%emt 0:00:04]} 38. b3 {[%emt 0:00:00]} Kxh3 {[%emt 0:01:41]} 39. c4 {[%emt 0:00:00]} bxc4 {[%emt 0:03:23]} 40. bxc4 {[%emt 0:00:00]} Kxg4 {[%emt 0:00:06]} 41. c5 {[%emt 0:00:00]} h5 {[%emt 0:00:49]} 42. c6 {[%emt 0:00:00]} h4 {[%emt 0:00:06]} 43. c7 {[%emt 0:00:00]} h3 {[%emt 0:00:07]} 44. c8=Q+ {[%emt 0:00:00]} Kg3 {[%emt 0:00:05]} 45. Qc3+ {[%emt 0:00:03]} Kg2 {[%emt 0:00:29]} 46. Qd2+ {[%emt 0:00:12]} Kg1 {[%emt 0:00:12]} 47. Kf3 {[%emt 0:00:18]} 1-0